Organisation Name,Department where exp. Incurred,Service Category Label,Supplier (Beneficiary),Purpose of Expenditure,Procurement (Merchant) Category,Purchase Date,Settlement Date,Transaction Number,Net Amount (�)
Stockport MBC,Corporate and Support Services,Central Support Costs,FASTHOSTS INTERNET,Information and Communications Technology,Information Communication Technology  ,28.08.2021,16.09.2021,GPC08210000001,264.00
Stockport MBC,Corporate and Support Services,Central Support Costs,FASTHOSTS INTERNET,Information and Communications Technology,Information Communication Technology  ,26.08.2021,16.09.2021,GPC08210000002,25.18
Stockport MBC,Corporate and Support Services,Central Support Costs,FASTHOSTS INTERNET,Information and Communications Technology,Information Communication Technology  ,25.08.2021,16.09.2021,GPC08210000003,12.59
Stockport MBC,Corporate and Support Services,Central Support Costs,MIRO.COM,Information and Communications Technology,Information Communication Technology  ,24.08.2021,16.09.2021,GPC08210000004,169.09
Stockport MBC,Corporate and Support Services,Central Support Costs,FASTHOSTS INTERNET,Information and Communications Technology,Information Communication Technology  ,16.08.2021,16.09.2021,GPC08210000005,19.19
Stockport MBC,Corporate and Support Services,Central Support Costs,AUTH0.COM,Information and Communications Technology,Information Communication Technology  ,13.08.2021,16.09.2021,GPC08210000006,8.94
Stockport MBC,Corporate and Support Services,Central Support Costs,GITHUB,Information and Communications Technology,Information Communication Technology  ,14.08.2021,16.09.2021,GPC08210000007,74.66
Stockport MBC,Corporate and Support Services,Central Support Costs,ATLASSIAN,Information and Communications Technology,Information Communication Technology  ,09.08.2021,16.09.2021,GPC08210000008,880.65
Stockport MBC,Corporate and Support Services,Central Support Costs,WWW.CONTENTFUL.COM,Information and Communications Technology,Information Communication Technology  ,09.08.2021,16.09.2021,GPC08210000009,803.10
Stockport MBC,Corporate and Support Services,Central Support Costs,AUTH0.COM,Information and Communications Technology,Information Communication Technology  ,05.08.2021,16.09.2021,GPC08210000010,148.15
Stockport MBC,Corporate and Support Services,Central Support Costs,AWS EMEA,Information and Communications Technology,Information Communication Technology  ,03.08.2021,16.09.2021,GPC08210000011,"1,065.74"
Stockport MBC,Services to People,Adult Social Care,DELIVEROO,Catering Supplies,Catering Food & Beverages ,13.08.2021,16.09.2021,GPC08210000012,17.59
Stockport MBC,Services to People,Adult Social Care,DELIVEROO,Catering Supplies,Catering Food & Beverages ,06.08.2021,16.09.2021,GPC08210000013,12.48
Stockport MBC,Services to People,Adult Social Care,DELIVEROO,Catering Supplies,Catering Food & Beverages ,05.08.2021,16.09.2021,GPC08210000014,44.79
Stockport MBC,Services to People,Adult Social Care,DELIVEROO,Catering Supplies,Catering Food & Beverages ,03.08.2021,16.09.2021,GPC08210000015,14.77
Stockport MBC,Corporate and Support Services,Central Services to the public,BREAD AND BUTTIES LTD,Expenses and Allowances,Catering  ,01.09.2021,16.09.2021,GPC08210000016,45.30
Stockport MBC,Corporate and Support Services,Central Services to the public,BREAD AND BUTTIES HEAV,Expenses and Allowances,Catering  ,18.08.2021,16.09.2021,GPC08210000017,26.60
Stockport MBC,Corporate and Support Services,Central Services to the public,BREAD AND BUTTIES HEAV,Expenses and Allowances,Catering  ,16.08.2021,16.09.2021,GPC08210000018,46.80
Stockport MBC,Corporate and Support Services,Central Support Costs,FACEBK  5AQUHBFLG2,Office Expenses,Facilities & Management Services  ,31.08.2021,16.09.2021,GPC08210000019,166.43
Stockport MBC,Corporate and Support Services,Central Support Costs,APPLE.COM/BILL,Information and Communications Technology,Information Communication Technology  ,26.08.2021,16.09.2021,GPC08210000020,5.83
Stockport MBC,Corporate and Support Services,Central Support Costs,FACEBK  3SZUW67MG2,Office Expenses,Facilities & Management Services  ,23.08.2021,16.09.2021,GPC08210000021,700.00
Stockport MBC,Services to People,Childrens & Educational Services,WM MORRISON PETROL OPT,Fuel,Vehicle Management Fuel ,04.08.2021,16.09.2021,GPC08210000022,8.00
Stockport MBC,Services to Place,Cultural & Related Services,POST OFFICE COUNTER,Office Expenses,Mail Services�  ,17.08.2021,16.09.2021,GPC08210000023,3.20
Stockport MBC,Services to People,Childrens & Educational Services,AMZNMKTPLACE AMAZON.CO,Publicity and Promotion,Arts & Leisure Services  ,01.09.2021,16.09.2021,GPC08210000024,5.85
Stockport MBC,Services to People,Childrens & Educational Services,AMZNMKTPLACE AMAZON.CO,Publicity and Promotion,Arts & Leisure Services  ,31.08.2021,16.09.2021,GPC08210000025,10.74
Stockport MBC,Services to People,Childrens & Educational Services,AMZNMKTPLACE AMAZON.CO,Publicity and Promotion,Arts & Leisure Services  ,01.09.2021,16.09.2021,GPC08210000026,14.69
Stockport MBC,Services to People,Childrens & Educational Services,AMZNMKTPLACE AMAZON.CO,Publicity and Promotion,Arts & Leisure Services  ,31.08.2021,16.09.2021,GPC08210000027,2.54
Stockport MBC,Services to People,Childrens & Educational Services,FACEBK  BPM9K63SK2,Office Expenses,Facilities & Management Services  ,31.08.2021,16.09.2021,GPC08210000028,307.99
Stockport MBC,Services to People,Childrens & Educational Services,CVAA UK LTD,Staff Training,Human Resources  ,26.08.2021,16.09.2021,GPC08210000029,158.00
Stockport MBC,Services to People,Childrens & Educational Services,GOOGLE  ADS8179771860,Office Expenses,Facilities & Management Services  ,03.08.2021,16.09.2021,GPC08210000030,89.42
Stockport MBC,Services to People,Childrens & Educational Services,AMAZON PRIME KW7JX7O45,Furniture and Equipment,Furniture & Soft Furnishings  ,13.08.2021,16.09.2021,GPC08210000031,7.99
Stockport MBC,Services to People,Childrens & Educational Services,WM MORRISONS STORE,Catering Supplies,Catering Food & Beverages ,31.08.2021,16.09.2021,GPC08210000032,115.41
Stockport MBC,Corporate and Support Services,Corporate & Democratic Core,COUNTY CAR AND VAN STO,Leasing /Transport Hire,Vehicle Management Leasing ,05.08.2021,16.09.2021,GPC08210000033,244.24
Stockport MBC,Services to People,Adult Social Care,ASDA GROCERIES ONLINE,Catering Supplies,Catering Food & Beverages ,27.08.2021,16.09.2021,GPC08210000034,-0.15
Stockport MBC,Services to People,Adult Social Care,ASDA GROCERIES ONLINE,Catering Supplies,Catering Food & Beverages ,27.08.2021,16.09.2021,GPC08210000035,96.13
Stockport MBC,Services to People,Adult Social Care,ASDA GROCERIES ONLINE,Catering Supplies,Catering Food & Beverages ,21.08.2021,16.09.2021,GPC08210000036,-1.78
Stockport MBC,Services to People,Adult Social Care,ASDA GROCERIES ONLINE,Catering Supplies,Catering Food & Beverages ,21.08.2021,16.09.2021,GPC08210000037,112.06
Stockport MBC,Services to People,Adult Social Care,ASDA GROCERIES ONLINE,Catering Supplies,Catering Food & Beverages ,14.08.2021,16.09.2021,GPC08210000038,0.66
Stockport MBC,Services to People,Adult Social Care,ASDA GROCERIES ONLINE,Catering Supplies,Catering Food & Beverages ,14.08.2021,16.09.2021,GPC08210000039,107.89
Stockport MBC,Services to Place,Central Support Costs,WWW.ICO.ORG.UK,Expenses and Allowances,UNCLASSIFIED  ,23.08.2021,16.09.2021,GPC08210000040,40.00
Stockport MBC,Corporate and Support Services,Central Support Costs,SLATER HEELIS LIMITED,Legal Fees,Legal Services  ,20.08.2021,16.09.2021,GPC08210000041,50.00
Stockport MBC,Corporate and Support Services,Central Support Costs,PAYPAL  CARING DADS,Staff Training,Human Resources  ,20.08.2021,16.09.2021,GPC08210000042,604.10
Stockport MBC,Corporate and Support Services,Central Support Costs,AMAZON.CO.UK F792I5UE5,Office Expenses,Stationery    ,13.08.2021,16.09.2021,GPC08210000043,10.94
Stockport MBC,Corporate and Support Services,Central Support Costs,AMZNMKTPLACE,Office Expenses,Stationery    ,10.08.2021,16.09.2021,GPC08210000044,19.35
Stockport MBC,Corporate and Support Services,Central Support Costs,WWW.MONEYCLAIM.GOV,Legal Fees,Legal Services  ,06.08.2021,16.09.2021,GPC08210000045,"2,202.22"
Stockport MBC,Services to People,Adult Social Care,ALDI 84 773,Catering Supplies,Catering Food & Beverages ,09.08.2021,16.09.2021,GPC08210000046,26.40
Stockport MBC,Services to People,Public Health,TRAINLINE.COM,Travelling Expenses,Human Resources Travel & Subsistence ,16.08.2021,16.09.2021,GPC08210000047,25.08
Stockport MBC,Services to People,Public Health,PAYPAL  ASEPTICDEVE,Expenses and Allowances,Human Resources Training & Conferences ,11.08.2021,16.09.2021,GPC08210000048,189.00
Stockport MBC,Services to People,Adult Social Care,ASDA GROCERIES ONLINE,Catering Supplies,Catering Food & Beverages ,10.08.2021,16.09.2021,GPC08210000049,79.75
Stockport MBC,Services to People,Childrens & Educational Services,AMAZON PRIME IM1CH4W95,Office Expenses,Stationery    ,18.08.2021,16.09.2021,GPC08210000050,7.99
Stockport MBC,Services to People,Childrens & Educational Services,AMZNMKTPLACE AMAZON.CO,Furniture and Equipment,Environmental Services Technical Equipment ,03.08.2021,16.09.2021,GPC08210000051,204.96
Stockport MBC,Services to People,Adult Social Care,DELIVEROO,Catering Supplies,Catering Food & Beverages ,24.08.2021,16.09.2021,GPC08210000052,14.40
Stockport MBC,Services to People,Adult Social Care,DELIVEROO,Catering Supplies,Catering Food & Beverages ,18.08.2021,16.09.2021,GPC08210000053,16.40
Stockport MBC,Services to People,Adult Social Care,DELIVEROO,Catering Supplies,Catering Food & Beverages ,18.08.2021,16.09.2021,GPC08210000054,12.98
Stockport MBC,Services to People,Adult Social Care,B & Q 1205,Office Expenses,Health & Safety�  ,25.08.2021,16.09.2021,GPC08210000055,10.00
Stockport MBC,Services to People,Adult Social Care,HALFORDS 0483,Office Expenses,Health & Safety�  ,25.08.2021,16.09.2021,GPC08210000056,16.00
Stockport MBC,Services to People,Childrens & Educational Services,LOGANAIR,Travelling Expenses,Human Resources Travel & Subsistence ,01.09.2021,16.09.2021,GPC08210000057,147.26
Stockport MBC,Services to People,Childrens & Educational Services,MANCHESTER AIRPORT,Mileage Claims /Allowances,Human Resources Travel & Subsistence ,01.09.2021,16.09.2021,GPC08210000058,46.00
Stockport MBC,Services to People,Childrens & Educational Services,HOLIDAY INNS,Care Payments,Social Community Care Supplies & Services  ,31.08.2021,16.09.2021,GPC08210000059,575.10
Stockport MBC,Services to People,Childrens & Educational Services,TRAINLINE.COM,Travelling Expenses,Human Resources Travel & Subsistence ,31.08.2021,16.09.2021,GPC08210000060,32.31
Stockport MBC,Services to People,Childrens & Educational Services,GETFISHINGLICENCE,Furniture and Equipment,Environmental Services Technical Equipment ,26.08.2021,16.09.2021,GPC08210000061,30.00
Stockport MBC,Services to People,Childrens & Educational Services,THETRAINLINE.COM,Travelling Expenses,Human Resources Travel & Subsistence ,26.08.2021,16.09.2021,GPC08210000062,89.79
Stockport MBC,Services to People,Childrens & Educational Services,GETFISHINGLICENCE,Furniture and Equipment,Environmental Services Technical Equipment ,26.08.2021,16.09.2021,GPC08210000063,30.00
Stockport MBC,Services to People,Childrens & Educational Services,ZOOM.US 888-799-9666,Furniture and Equipment,Furniture & Soft Furnishings  ,26.08.2021,16.09.2021,GPC08210000064,14.39
Stockport MBC,Services to People,Childrens & Educational Services,HOLIDAY INNS,Care Payments,Social Community Care Supplies & Services  ,24.08.2021,16.09.2021,GPC08210000065,645.00
Stockport MBC,Services to People,Childrens & Educational Services,BRITANNIA HOTEL,Care Payments,Social Community Care Supplies & Services  ,25.08.2021,16.09.2021,GPC08210000066,84.00
Stockport MBC,Services to People,Childrens & Educational Services,TRAINLINE.COM,Travelling Expenses,Human Resources Travel & Subsistence ,17.08.2021,16.09.2021,GPC08210000067,10.94
Stockport MBC,Services to People,Childrens & Educational Services,ARGOS LTD,Furniture and Equipment,Environmental Services Technical Equipment ,12.08.2021,16.09.2021,GPC08210000068,386.95
Stockport MBC,Services to People,Childrens & Educational Services,TRAVELODGE GB0000,Care Payments,Social Community Care Supplies & Services  ,13.08.2021,16.09.2021,GPC08210000069,369.14
Stockport MBC,Services to People,Childrens & Educational Services,ARGOS LTD,Furniture and Equipment,Environmental Services Technical Equipment ,12.08.2021,16.09.2021,GPC08210000070,-386.95
Stockport MBC,Services to People,Childrens & Educational Services,TRAINLINE.COM,Travelling Expenses,Human Resources Travel & Subsistence ,13.08.2021,16.09.2021,GPC08210000071,21.16
Stockport MBC,Services to People,Childrens & Educational Services,AMAZON.CO.UK 3Y3NB2PP5,Office Expenses,Stationery    ,12.08.2021,16.09.2021,GPC08210000072,90.15
Stockport MBC,Services to People,Childrens & Educational Services,HOLIDAY INNS,Care Payments,Social Community Care Supplies & Services  ,10.08.2021,16.09.2021,GPC08210000073,617.00
Stockport MBC,Services to People,Childrens & Educational Services,TRAINLINE.COM,Travelling Expenses,Human Resources Travel & Subsistence ,06.08.2021,16.09.2021,GPC08210000074,21.16
Stockport MBC,Services to People,Childrens & Educational Services,ARGOS LTD,Furniture and Equipment,Environmental Services Technical Equipment ,05.08.2021,16.09.2021,GPC08210000075,426.95
Stockport MBC,Services to People,Childrens & Educational Services,ARGOS LTD,Furniture and Equipment,Environmental Services Technical Equipment ,04.08.2021,16.09.2021,GPC08210000076,371.95
Stockport MBC,Services to People,Childrens & Educational Services,1 AND 1 IONOS LTD,Information and Communications Technology,Information Communication Technology  ,27.08.2021,16.09.2021,GPC08210000077,12.00
Stockport MBC,Services to People,Childrens & Educational Services,METRO TAXIS LIMITED,Care Payments,Social Community Care Supplies & Services  ,25.08.2021,16.09.2021,GPC08210000078,10.00
Stockport MBC,Services to People,Childrens & Educational Services,METRO TAXIS LIMITED,Care Payments,Social Community Care Supplies & Services  ,24.08.2021,16.09.2021,GPC08210000079,10.00
Stockport MBC,Services to People,Childrens & Educational Services,METRO TAXIS LIMITED,Care Payments,Social Community Care Supplies & Services  ,24.08.2021,16.09.2021,GPC08210000080,10.00
Stockport MBC,Services to People,Childrens & Educational Services,METRO TAXIS LIMITED,Care Payments,Social Community Care Supplies & Services  ,23.08.2021,16.09.2021,GPC08210000081,10.00
Stockport MBC,Services to People,Childrens & Educational Services,METRO TAXIS LIMITED,Care Payments,Social Community Care Supplies & Services  ,23.08.2021,16.09.2021,GPC08210000082,10.00
Stockport MBC,Services to People,Childrens & Educational Services,METRO TAXIS LIMITED,Care Payments,Social Community Care Supplies & Services  ,20.08.2021,16.09.2021,GPC08210000083,10.00
Stockport MBC,Services to People,Childrens & Educational Services,STOCKPORT MBC DOM,Care Payments,Social Community Care Supplies & Services  ,19.08.2021,16.09.2021,GPC08210000084,43.80
Stockport MBC,Services to People,Childrens & Educational Services,METRO TAXIS LIMITED,Care Payments,Social Community Care Supplies & Services  ,17.08.2021,16.09.2021,GPC08210000085,-10.00
Stockport MBC,Services to People,Childrens & Educational Services,METRO TAXIS LIMITED,Care Payments,Social Community Care Supplies & Services  ,15.08.2021,16.09.2021,GPC08210000086,10.00
Stockport MBC,Services to People,Childrens & Educational Services,STOCKPORT MBC DOM,Care Payments,Social Community Care Supplies & Services  ,16.08.2021,16.09.2021,GPC08210000087,344.75
Stockport MBC,Services to People,Childrens & Educational Services,METRO TAXIS LIMITED,Care Payments,Social Community Care Supplies & Services  ,12.08.2021,16.09.2021,GPC08210000088,10.00
Stockport MBC,Services to People,Childrens & Educational Services,METRO TAXIS LIMITED,Care Payments,Social Community Care Supplies & Services  ,11.08.2021,16.09.2021,GPC08210000089,10.00
Stockport MBC,Services to People,Childrens & Educational Services,HOLIDAY INNS,Care Payments,Social Community Care Supplies & Services  ,10.08.2021,16.09.2021,GPC08210000090,635.55
Stockport MBC,Services to People,Childrens & Educational Services,METRO TAXIS LIMITED,Care Payments,Social Community Care Supplies & Services  ,10.08.2021,16.09.2021,GPC08210000091,10.00
Stockport MBC,Services to People,Childrens & Educational Services,ZOOM.US 888-799-9666,Information and Communications Technology,Information Communication Technology  ,11.08.2021,16.09.2021,GPC08210000092,11.99
Stockport MBC,Services to People,Childrens & Educational Services,METRO TAXIS LIMITED,Care Payments,Social Community Care Supplies & Services  ,09.08.2021,16.09.2021,GPC08210000093,10.00
Stockport MBC,Services to People,Childrens & Educational Services,METRO TAXIS LIMITED,Care Payments,Social Community Care Supplies & Services  ,06.08.2021,16.09.2021,GPC08210000094,10.00
Stockport MBC,Services to People,Childrens & Educational Services,STOCKPORT MBC DOM,Care Payments,Social Community Care Supplies & Services  ,05.08.2021,16.09.2021,GPC08210000095,386.13
Stockport MBC,Services to People,Childrens & Educational Services,STOCKPORT MBC DOM,Care Payments,Social Community Care Supplies & Services  ,05.08.2021,16.09.2021,GPC08210000096,264.19
Stockport MBC,Services to People,Childrens & Educational Services,STOCKPORT MBC DOM,Care Payments,Social Community Care Supplies & Services  ,05.08.2021,16.09.2021,GPC08210000097,363.08
Stockport MBC,Services to People,Childrens & Educational Services,METRO TAXIS LIMITED,Care Payments,Social Community Care Supplies & Services  ,04.08.2021,16.09.2021,GPC08210000098,10.00
Stockport MBC,Services to People,Childrens & Educational Services,METRO TAXIS LIMITED,Care Payments,Social Community Care Supplies & Services  ,03.08.2021,16.09.2021,GPC08210000099,10.00
Stockport MBC,Services to People,Childrens & Educational Services,METRO TAXIS LIMITED,Care Payments,Social Community Care Supplies & Services  ,03.08.2021,16.09.2021,GPC08210000100,10.00
Stockport MBC,Services to People,Childrens & Educational Services,METRO TAXIS LIMITED,Care Payments,Social Community Care Supplies & Services  ,02.08.2021,16.09.2021,GPC08210000101,10.00
Stockport MBC,Services to People,Childrens & Educational Services,METRO TAXIS LIMITED,Care Payments,Social Community Care Supplies & Services  ,02.08.2021,16.09.2021,GPC08210000102,10.00
Stockport MBC,Services to People,Childrens & Educational Services,TOPS RESTAURANT,Catering Supplies,Catering Food & Beverages ,19.08.2021,16.09.2021,GPC08210000103,101.00
Stockport MBC,Services to People,Childrens & Educational Services,VIA MANCHESTER,Publicity and Promotion,Arts & Leisure Services  ,19.08.2021,16.09.2021,GPC08210000104,7.30
Stockport MBC,Services to People,Childrens & Educational Services,MCDONALDS,Catering Supplies,Catering Food & Beverages ,19.08.2021,16.09.2021,GPC08210000105,16.44
Stockport MBC,Services to People,Childrens & Educational Services,VIA MANCHESTER,Publicity and Promotion,Arts & Leisure Services  ,19.08.2021,16.09.2021,GPC08210000106,9.70
Stockport MBC,Services to People,Childrens & Educational Services,SUMUP   KIM TAYLOR,Publicity and Promotion,Arts & Leisure Services  ,19.08.2021,16.09.2021,GPC08210000107,18.25
Stockport MBC,Services to People,Childrens & Educational Services,PANIC POSTER COMPANY,Publicity and Promotion,Arts & Leisure Services  ,19.08.2021,16.09.2021,GPC08210000108,3.00
Stockport MBC,Services to People,Childrens & Educational Services,IZ  MAKE UP OR BREAK U,Publicity and Promotion,Arts & Leisure Services  ,19.08.2021,16.09.2021,GPC08210000109,22.00
Stockport MBC,Services to People,Childrens & Educational Services,SUMUP   KIM TAYLOR,Publicity and Promotion,Arts & Leisure Services  ,19.08.2021,16.09.2021,GPC08210000110,9.00
Stockport MBC,Services to People,Childrens & Educational Services,WWW.GROUPON.CO.UK,Publicity and Promotion,Arts & Leisure Services  ,14.08.2021,16.09.2021,GPC08210000111,56.00
Stockport MBC,Services to People,Childrens & Educational Services,NETFLIX.COM,Fees and Charges,Financial Services  ,10.08.2021,16.09.2021,GPC08210000112,13.99
Stockport MBC,Services to People,Childrens & Educational Services,DISNEY PLUS,Fees and Charges,Financial Services  ,03.08.2021,16.09.2021,GPC08210000113,5.99
Stockport MBC,Services to People,Childrens & Educational Services,AMZNMKTPLACE,Furniture and Equipment,Environmental Services Technical Equipment ,15.08.2021,16.09.2021,GPC08210000114,20.93
Stockport MBC,Services to People,Childrens & Educational Services,AMZNMKTPLACE,Furniture and Equipment,Environmental Services Technical Equipment ,09.08.2021,16.09.2021,GPC08210000115,94.20
Stockport MBC,Services to People,Childrens & Educational Services,WWW.THEWORKS.CO.UK,Furniture and Equipment,Environmental Services Technical Equipment ,05.08.2021,16.09.2021,GPC08210000116,5.99
Stockport MBC,Services to People,Childrens & Educational Services,AMZNMKTPLACE AMAZON.CO,Furniture and Equipment,Environmental Services Technical Equipment ,05.08.2021,16.09.2021,GPC08210000117,44.94
Stockport MBC,Services to People,Childrens & Educational Services,AMZNMKTPLACE,Furniture and Equipment,Environmental Services Technical Equipment ,06.08.2021,16.09.2021,GPC08210000118,85.90
Stockport MBC,Services to People,Childrens & Educational Services,AMZNMKTPLACE AMAZON.CO,Furniture and Equipment,Environmental Services Technical Equipment ,05.08.2021,16.09.2021,GPC08210000119,65.62
Stockport MBC,Services to People,Childrens & Educational Services,AMZNMKTPLACE AMAZON.CO,Furniture and Equipment,Environmental Services Technical Equipment ,05.08.2021,16.09.2021,GPC08210000120,22.08
Stockport MBC,Services to People,Childrens & Educational Services,AMAZON PRIME QA3TZ6G15,Furniture and Equipment,Environmental Services Technical Equipment ,06.08.2021,16.09.2021,GPC08210000121,7.99
Stockport MBC,Services to People,Childrens & Educational Services,AMZNMKTPLACE,Furniture and Equipment,Environmental Services Technical Equipment ,06.08.2021,16.09.2021,GPC08210000122,74.88
Stockport MBC,Services to People,Childrens & Educational Services,AMZNMKTPLACE,Furniture and Equipment,Environmental Services Technical Equipment ,06.08.2021,16.09.2021,GPC08210000123,23.96
Stockport MBC,Services to People,Childrens & Educational Services,AMZNMKTPLACE,Furniture and Equipment,Environmental Services Technical Equipment ,08.08.2021,16.09.2021,GPC08210000124,91.93
Stockport MBC,Services to People,Childrens & Educational Services,AMZNMKTPLACE AMAZON.CO,Furniture and Equipment,Environmental Services Technical Equipment ,08.08.2021,16.09.2021,GPC08210000125,78.33
Stockport MBC,Services to People,Childrens & Educational Services,AMZNMKTPLACE,Furniture and Equipment,Environmental Services Technical Equipment ,08.08.2021,16.09.2021,GPC08210000126,18.70
Stockport MBC,Services to People,Childrens & Educational Services,AMZNMKTPLACE,Furniture and Equipment,Environmental Services Technical Equipment ,05.08.2021,16.09.2021,GPC08210000127,79.98
Stockport MBC,Services to People,Childrens & Educational Services,AMZNMKTPLACE,Furniture and Equipment,Environmental Services Technical Equipment ,05.08.2021,16.09.2021,GPC08210000128,23.87
Stockport MBC,Services to People,Childrens & Educational Services,AMAZON.CO.UK YF1493PR5,Furniture and Equipment,Environmental Services Technical Equipment ,05.08.2021,16.09.2021,GPC08210000129,22.65
Stockport MBC,Services to People,Adult Social Care,AMZNMKTPLACE AMAZON.CO,COVID,COVID,07.08.2021,16.09.2021,GPC08210000130,84.15
Stockport MBC,Corporate and Support Services,Cultural & Related Services,INVESTORS CHRONICLE,Library Equipment,Education Library Books ,26.08.2021,16.09.2021,GPC08210000131,155.00
Stockport MBC,Corporate and Support Services,Cultural & Related Services,AMAZON.CO.UK 3G26G3545,Library Equipment,Education Library Books ,26.08.2021,16.09.2021,GPC08210000132,12.65
Stockport MBC,Corporate and Support Services,Cultural & Related Services,AMAZON.CO.UK SI3AC0AJ5,Library Equipment,Education Library Books ,18.08.2021,16.09.2021,GPC08210000133,14.43
Stockport MBC,Services to People,Adult Social Care,ALDI 84 773,Catering Supplies,Catering Food & Beverages ,25.08.2021,16.09.2021,GPC08210000134,30.02
Stockport MBC,Corporate and Support Services,Planning Services,ALDI 82 773,Catering Supplies,Catering Food & Beverages ,26.08.2021,16.09.2021,GPC08210000135,11.68
Stockport MBC,Corporate and Support Services,Planning Services,ALDI 82 773,Catering Supplies,Catering Food & Beverages ,19.08.2021,16.09.2021,GPC08210000136,5.99
Stockport MBC,Corporate and Support Services,Planning Services,W M MORRISON STORE,Catering Supplies,Catering Food & Beverages ,19.08.2021,16.09.2021,GPC08210000137,17.48
Stockport MBC,Services to People,Childrens & Educational Services,EB  SDINGOV 2021,Staff Training,Human Resources  ,31.08.2021,16.09.2021,GPC08210000138,189.90
Stockport MBC,Services to People,Childrens & Educational Services,EB  SDINGOV 2021,Staff Training,Human Resources  ,31.08.2021,16.09.2021,GPC08210000139,189.90
Stockport MBC,Services to People,Childrens & Educational Services,EB  SDINGOV 2021,Staff Training,Human Resources  ,31.08.2021,16.09.2021,GPC08210000140,189.90
Stockport MBC,Services to People,Childrens & Educational Services,BCCG E.V.,Publicity and Promotion,Arts & Leisure Services  ,27.08.2021,16.09.2021,GPC08210000141,206.72
Stockport MBC,Services to People,Childrens & Educational Services,ARGOS LTD,Care Payments,Social Community Care Supplies & Services  ,19.08.2021,16.09.2021,GPC08210000142,33.94
Stockport MBC,Services to People,Childrens & Educational Services,ARGOS LTD,Furniture and Equipment,Furniture & Soft Furnishings  ,11.08.2021,16.09.2021,GPC08210000143,30.00
Stockport MBC,Services to People,Childrens & Educational Services,ASDA SUPERSTORE,Catering Supplies,Catering Food & Beverages ,26.08.2021,16.09.2021,GPC08210000144,13.51
Stockport MBC,Services to People,Childrens & Educational Services,STOCKPORT T/O,Travelling Expenses,Human Resources Travel & Subsistence ,26.08.2021,16.09.2021,GPC08210000145,19.50
Stockport MBC,Services to People,Childrens & Educational Services,SAINSBURYS S/MKTS,Catering Supplies,Catering Food & Beverages ,18.08.2021,16.09.2021,GPC08210000146,25.16
Stockport MBC,Services to People,Childrens & Educational Services,PAYPAL  MS CRAIG,Library Equipment,Education Library Books ,16.08.2021,16.09.2021,GPC08210000147,12.99
Stockport MBC,Services to People,Childrens & Educational Services,ASDA STORE 4422,Catering Supplies,Catering Food & Beverages ,11.08.2021,16.09.2021,GPC08210000148,8.95
Stockport MBC,Services to Place,Environmental & Regulatory Services,TRADING STANDARDS INST,Professional Fees,Consultancy   ,19.08.2021,16.09.2021,GPC08210000149,120.00
Stockport MBC,Services to Place,Highways & Transport Services,AMZNMKTPLACE,Information and Communications Technology,Information Communication Technology  ,19.08.2021,16.09.2021,GPC08210000150,20.27
Stockport MBC,Services to Place,Environmental & Regulatory Services,COMARK INSTRUMENTS,Furniture and Equipment,Furniture & Soft Furnishings  ,11.08.2021,16.09.2021,GPC08210000151,404.00
Stockport MBC,Corporate and Support Services,Central Support Costs,INSIGHT CARE,Staff Training,Human Resources  ,06.08.2021,16.09.2021,GPC08210000152,600.00
Stockport MBC,Services to Place,Highways & Transport Services,HEART OF ENGLAND NHS,Fees and Charges,UNCLASSIFIED  ,06.08.2021,16.09.2021,GPC08210000153,235.00
Stockport MBC,Services to Place,Highways & Transport Services,HEART OF ENGLAND NHS,Fees and Charges,UNCLASSIFIED  ,06.08.2021,16.09.2021,GPC08210000154,235.00
Stockport MBC,Services to Place,Highways & Transport Services,SCCS,Furniture and Equipment,Furniture & Soft Furnishings  ,04.08.2021,16.09.2021,GPC08210000155,950.00
Stockport MBC,Corporate and Support Services,Cultural & Related Services,SAINSBURY'S S/MKTS,Catering Supplies,Catering Food & Beverages ,20.08.2021,16.09.2021,GPC08210000156,4.25
Stockport MBC,Corporate and Support Services,Cultural & Related Services,TESCO STORES,Expenses and Allowances,Catering  ,06.08.2021,16.09.2021,GPC08210000157,22.75
Stockport MBC,Corporate and Support Services,Cultural & Related Services,TESCO STORES,Catering Supplies,Catering Food & Beverages ,07.08.2021,16.09.2021,GPC08210000158,1.20
Stockport MBC,Corporate and Support Services,Cultural & Related Services,WWW.ICO.ORG.UK,Fees and Charges,"Works - Construction, Repair & Maintenance  ",02.08.2021,16.09.2021,GPC08210000159,40.00
